bitfinex/quotes_BTCUSD_20250221
["timestamp","ask_amount","ask_price","bid_price","bid_amount"]
[1740167370104,0.001,95413.0,95402.0,0.10264569]
[1740167370464,0.09117688,95429.0,95402.0,0.10264569]
[1740167370673,0.09117688,95424.0,95403.0,0.00057752]
[1740167370897,0.09117688,95424.0,95404.0,0.10264569]
[1740167371338,0.00454666,95439.0,95404.0,0.10264569]
[1740167371972,0.00788164,95425.0,95404.0,0.10264569]
[1740167373881,0.00788164,95425.0,95404.0,0.10564569]
[1740167374323,0.00788164,95425.0,95404.0,0.10764569]
[1740167375219,0.08368157,95421.0,95404.0,0.005]
[1740167375421,0.00915632,95420.0,95404.0,0.005]
[1740167375627,0.00157222,95420.0,95404.0,0.005]
[1740167376111,0.08368157,95421.0,95404.0,0.002]
[1740167376328,0.15157226,95420.0,95404.0,0.002]
[1740167376538,0.08368157,95411.0,95404.0,0.004]
[1740167376756,0.08368157,95411.0,95404.0,0.002]
[1740167376963,0.08368157,95411.0,95401.0,0.14895975]
[1740167377166,0.00656533,95410.0,95404.0,0.003]
[1740167377377,0.00656533,95410.0,95404.0,0.002]
[1740167378931,0.00656533,95410.0,95404.0,0.005]
[1740167379557,0.02065519,95410.0,95404.0,0.002]
[1740167379796,0.00656533,95410.0,95404.0,0.005]
[1740167380552,0.15,95418.0,95404.0,0.005]
[1740167380752,0.10264569,95418.0,95404.0,0.005]
[1740167380953,0.25984869,95418.0,95404.0,0.005]
[1740167381230,0.157205,95417.0,95404.0,0.005]
[1740167381453,0.157204,95417.0,95404.0,0.003]
[1740167381692,0.157204,95417.0,95401.0,0.14895975]
[1740167381895,0.157229,95402.0,95401.0,0.14895975]
[1740167382103,0.26971469,95402.0,95401.0,0.05822168]
[1740167382420,0.3773637,95402.0,95401.0,0.05822168]
[1740167382763,0.00984,95402.0,95401.0,0.05822168]
[1740167383392,0.10026575,95416.0,95401.0,0.05822168]
[1740167383590,0.09046575,95416.0,95401.0,0.05822168]
[1740167383795,0.001,95402.0,95401.0,0.06022168]
[1740167384783,0.001,95402.0,95401.0,0.32009837]
[1740167384992,0.01421414,95417.0,95401.0,0.16286737]
[1740167385191,0.002,95416.0,95402.0,0.10264569]
[1740167385597,0.09858884,95425.0,95402.0,0.10264569]
[1740167385998,0.00157212,95424.0,95401.0,0.06522168]
[1740167386278,0.01568742,95424.0,95401.0,0.06522168]
[1740167386485,0.001,95402.0,95401.0,0.06422168]
[1740167387022,0.0141153,95424.0,95401.0,0.16086737]
[1740167387342,0.09958884,95425.0,95402.0,0.10322351]
[1740167387575,0.09958884,95425.0,95402.0,0.25987369]
[1740167387729,0.09858884,95425.0,95402.0,0.10264569]
[1740167387932,0.09858884,95425.0,95402.0,0.10164569]
[1740167388450,0.00157205,95424.0,95402.0,0.10164569]
[1740167388817,0.00157205,95424.0,95401.0,0.06422168]
[1740167389028,0.00788164,95425.0,95401.0,0.16086737]
[1740167389227,0.08525378,95424.0,95401.0,0.05822168]
[1740167389476,0.08368157,95424.0,95401.0,0.05822168]
[1740167389634,0.001,95402.0,95401.0,0.06522168]
[1740167390056,0.08368157,95424.0,95401.0,0.05822168]
[1740167390780,0.02325181,95425.0,95402.0,0.10264569]
[1740167391000,0.02325181,95425.0,95403.0,0.00057777]
[1740167391252,0.02225181,95425.0,95404.0,0.10264569]
[1740167391428,0.00788164,95425.0,95404.0,0.10264569]
[1740167391656,0.00788164,95425.0,95405.0,0.00057761]
[1740167391858,0.00788164,95425.0,95406.0,0.10264569]
[1740167392057,0.0008505,95439.0,95407.0,0.00057761]
[1740167392301,0.00772521,95435.0,95409.0,0.15024569]
[1740167392430,0.001,95424.0,95410.0,0.00057705]
[1740167392633,0.001,95424.0,95411.0,0.10264569]
[1740167392834,0.001,95424.0,95409.0,0.25953498]
[1740167392835,0.001,95424.0,95417.0,0.10264569]
[1740167393223,0.0028505,95439.0,95423.0,0.10264569]
[1740167393469,0.0028505,95439.0,95424.0,0.10264569]
[1740167393671,0.0008505,95439.0,95425.0,0.0777]
[1740167393884,0.0008505,95439.0,95426.0,0.10264569]
[1740167394086,0.0008505,95439.0,95432.0,0.10264569]
[1740167394293,0.0008505,95439.0,95433.0,0.0456]
[1740167394444,0.0008505,95439.0,95434.0,0.10264569]
[1740167394839,0.0008505,95439.0,95425.0,0.0777]
[1740167395140,0.0008505,95439.0,95426.0,0.10164569]
[1740167395768,0.0018505,95439.0,95434.0,0.007]
[1740167395968,0.0018505,95439.0,95435.0,0.10264569]
[1740167396269,0.0008505,95439.0,95435.0,0.10264569]
[1740167396470,0.0018505,95439.0,95435.0,0.10264569]
[1740167396900,0.0018505,95439.0,95426.0,0.007]
[1740167397074,0.0018505,95439.0,95434.0,0.004]
[1740167397280,0.0018505,95439.0,95426.0,0.007]
[1740167397695,0.0304839,95438.0,95435.0,0.004]
[1740167397902,0.0304839,95438.0,95406.0,0.0823]
[1740167397903,0.00157186,95437.0,95406.0,0.0823]
[1740167398092,0.00157186,95437.0,95434.0,0.004]
[1740167398299,0.0018505,95439.0,95435.0,0.007]
[1740167398495,0.00784982,95436.0,95435.0,0.007]
[1740167398710,0.00784982,95436.0,95434.0,0.004]
[1740167399527,0.00784982,95436.0,95416.0,0.10264569]
[1740167399753,0.00784982,95436.0,95434.0,0.005]
[1740167400175,0.0008505,95439.0,95434.0,0.005]
[1740167400366,0.0008505,95439.0,95434.0,0.008]
[1740167400746,0.0008505,95439.0,95435.0,0.10264569]
[1740167401371,0.001,95436.0,95435.0,0.10264569]
[1740167401778,0.0008505,95439.0,95435.0,0.10264569]
[1740167402106,0.0008505,95439.0,95435.0,0.10864569]
[1740167402107,0.0018505,95439.0,95435.0,0.10864569]
[1740167402429,0.0018505,95439.0,95438.0,0.10264569]
[1740167402603,0.0008505,95439.0,95438.0,0.10264569]
[1740167403008,0.0018505,95439.0,95438.0,0.10264569]
[1740167403620,0.0018505,95439.0,95435.0,0.006]
[1740167403819,0.0018505,95439.0,95438.0,0.10264569]
[1740167404029,0.0018505,95439.0,95438.0,0.10322216]
[1740167404198,0.0018505,95439.0,95438.0,0.10964569]
[1740167404199,0.0008505,95439.0,95438.0,0.10964569]
[1740167404403,0.0008505,95439.0,95438.0,0.26681569]
[1740167404585,0.0018505,95439.0,95438.0,0.26681569]
[1740167404983,0.0008505,95439.0,95438.0,0.25981569]
[1740167405530,0.0018505,95439.0,95438.0,0.26681569]
[1740167405671,0.0018505,95439.0,95438.0,0.25981569]
[1740167405872,0.0008505,95439.0,95438.0,0.25981569]
[1740167406101,0.0018505,95439.0,95438.0,0.26681569]
[1740167406723,0.0018505,95439.0,95438.0,0.10964569]
[1740167406935,0.0018505,95439.0,95438.0,0.014]
[1740167407138,0.0018505,95439.0,95438.0,0.007]
[1740167407419,0.0008505,95439.0,95411.0,0.21193498]
[1740167407644,0.0018505,95439.0,95438.0,0.014]
[1740167407846,0.0018505,95439.0,95438.0,0.007]
[1740167408065,0.0018505,95439.0,95424.0,0.209589]
[1740167408266,0.0008505,95439.0,95438.0,0.005]
[1740167408471,0.0018505,95439.0,95438.0,0.007]
[1740167408862,0.0008505,95439.0,95425.0,0.10264569]
[1740167409224,0.0018505,95439.0,95425.0,0.10264569]
[1740167409431,0.0018505,95439.0,95426.0,0.157189]
[1740167409630,0.0018505,95439.0,95427.0,0.10264569]
[1740167409836,0.0018505,95439.0,95438.0,0.005]
[1740167410074,0.0018505,95439.0,95427.0,0.10264569]
[1740167410294,0.0008505,95439.0,95427.0,0.10264569]
[1740167410505,0.0008505,95439.0,95428.0,0.00057702]
[1740167410708,0.0018505,95439.0,95438.0,0.15717]
[1740167410922,0.0018505,95439.0,95438.0,0.26481569]
[1740167411165,0.0018505,95439.0,95438.0,0.25981569]
[1740167411166,0.0008505,95439.0,95438.0,0.25981569]
[1740167411497,0.0018505,95439.0,95438.0,0.25981569]
[1740167411896,0.0008505,95439.0,95438.0,0.25981569]
[1740167412294,0.0008505,95439.0,95438.0,0.10964569]
[1740167412295,0.0018505,95439.0,95438.0,0.10964569]
[1740167412599,0.0018505,95439.0,95438.0,0.007]
[1740167413228,0.0018505,95439.0,95438.0,0.012]
[1740167413347,0.0008505,95439.0,95438.0,0.005]
[1740167414246,0.0008505,95439.0,95438.0,0.012]
[1740167414770,0.0008505,95439.0,95438.0,0.005]
[1740167415042,0.0008505,95439.0,95438.0,0.007]
[1740167416724,0.0008505,95439.0,95401.0,0.10518863]
[1740167416725,0.0008505,95439.0,95411.0,0.00057702]
[1740167416938,0.0008505,95439.0,95438.0,0.10364569]
[1740167417268,0.0008505,95439.0,95438.0,0.10264569]
[1740167417672,0.0008505,95439.0,95438.0,0.10364569]
[1740167418136,0.0008505,95439.0,95438.0,0.10264569]
[1740167418555,0.0018505,95439.0,95438.0,0.10964569]
[1740167419281,0.0018505,95439.0,95438.0,0.007]
[1740167419440,0.0018505,95439.0,95438.0,0.012]
[1740167419855,0.0018505,95439.0,95408.0,0.0809]
[1740167419856,0.0008505,95439.0,95408.0,0.0809]
[1740167420013,0.0018505,95439.0,95438.0,0.012]
[1740167420595,0.031352,95439.0,95411.0,0.10264569]
[1740167420798,0.031352,95439.0,95438.0,0.005]
[1740167420799,0.0008505,95439.0,95438.0,0.005]
[1740167420972,0.03235232,95439.0,95438.0,0.007]
[1740167421321,0.03135232,95439.0,95412.0,0.00057706]
[1740167421439,0.0008505,95439.0,95413.0,0.10264569]
[1740167421635,0.0018505,95439.0,95438.0,0.006]
[1740167421911,0.0018505,95439.0,95438.0,0.10864569]
[1740167422197,0.0018505,95439.0,95438.0,0.26581569]
[1740167422396,0.0018505,95439.0,95438.0,0.26881569]
[1740167422961,0.0008505,95439.0,95438.0,0.26281569]
[1740167423173,0.0008505,95439.0,95438.0,0.25981569]
[1740167423373,0.0925577,95439.0,95438.0,0.26281569]
[1740167423574,0.0925577,95439.0,95438.0,0.10564569]
[1740167423972,0.0915577,95439.0,95438.0,0.10964569]
[1740167424172,0.0925577,95439.0,95438.0,0.014]
[1740167424381,0.0925577,95439.0,95438.0,0.011]
[1740167424595,0.0925577,95439.0,95438.0,0.004]
[1740167424768,0.0915577,95439.0,95438.0,0.004]
[1740167425000,0.0925577,95439.0,95438.0,0.011]
[1740167425500,0.0925577,95439.0,95438.0,0.016]
[1740167425632,0.0925577,95439.0,95438.0,0.012]
[1740167426044,0.0925577,95439.0,95438.0,0.01]
[1740167426252,0.0915577,95439.0,95438.0,0.01]
[1740167426454,0.0008505,95439.0,95438.0,0.016]
[1740167426948,0.0008505,95439.0,95438.0,0.26981569]
[1740167427306,0.0008505,95439.0,95438.0,0.26681569]
[1740167427730,0.0008505,95439.0,95438.0,0.25981569]
[1740167427890,0.0008505,95439.0,95438.0,0.34751569]
[1740167428675,0.0008505,95439.0,95438.0,0.35051569]
[1740167428875,0.0008505,95439.0,95438.0,0.34751569]
[1740167429758,0.0008505,95439.0,95438.0,0.35451569]
[1740167430251,0.0008505,95439.0,95438.0,0.34751569]
[1740167430386,0.0008505,95439.0,95438.0,0.36151569]
[1740167430802,0.0008505,95439.0,95438.0,0.35451569]
[1740167431259,0.0008505,95439.0,95438.0,0.36151569]
[1740167431680,0.0008505,95439.0,95438.0,0.34751569]
[1740167432048,0.0008505,95439.0,95438.0,0.35451569]
[1740167432257,0.0008505,95439.0,95438.0,3.21621569]
[1740167432417,0.0907072,95470.0,95469.0,0.157119]
[1740167432613,0.0908377,95470.0,95469.0,0.25976469]
[1740167433637,0.0908377,95470.0,95469.0,0.10264569]
[1740167434180,0.0908377,95470.0,95449.0,0.0814]
[1740167434181,0.0001305,95470.0,95449.0,0.0814]
[1740167434434,0.0001305,95470.0,95450.0,0.10264569]
[1740167434639,0.0001305,95470.0,95451.0,0.00057604]
[1740167434843,0.0001305,95470.0,95450.0,0.10264569]
[1740167434844,0.0001305,95470.0,95469.0,0.006]
[1740167435020,0.0001305,95470.0,95452.0,0.10264569]
[1740167435021,0.0001305,95470.0,95459.0,0.157135]
[1740167435289,0.0001305,95470.0,95468.0,0.15712]
[1740167435464,0.0001305,95470.0,95469.0,0.10264569]
[1740167435680,0.0001305,95470.0,95469.0,0.10322122]
[1740167435882,0.0001305,95470.0,95469.0,0.15154569]
[1740167436246,0.0001305,95470.0,95469.0,0.15854569]
[1740167436672,0.0001305,95470.0,95469.0,0.15154569]
[1740167437087,0.0001305,95470.0,95469.0,0.15854569]
[1740167437694,0.0001305,95470.0,95469.0,0.31566469]
[1740167437894,0.0001305,95470.0,95469.0,0.32266469]
[1740167438116,0.0001305,95470.0,95469.0,0.31566469]
[1740167438765,0.0001305,95470.0,95469.0,0.30866469]
[1740167438968,0.0001305,95470.0,95469.0,0.31566469]
[1740167439147,0.0001305,95470.0,95469.0,0.32266469]
[1740167439280,0.0001305,95470.0,95469.0,0.31566469]
[1740167439689,0.0001305,95470.0,95469.0,0.32266469]
[1740167440834,0.0001305,95470.0,95469.0,0.31566469]
[1740167441043,0.04131693,95487.0,95469.0,0.31566469]
[1740167441249,0.04131693,95487.0,95470.0,0.10264569]
[1740167441423,0.01454085,95496.0,95470.0,0.10264569]
[1740167441639,0.07874328,95497.0,95472.0,0.10264569]
[1740167441903,0.07874328,95497.0,95482.0,0.10264569]
[1740167442083,0.07874328,95497.0,95496.0,0.157074]
[1740167442335,0.07874328,95497.0,95496.0,0.25971969]
[1740167442541,0.07874328,95497.0,95496.0,0.10264569]
[1740167442712,0.07874328,95497.0,95496.0,0.25971969]
[1740167443437,0.07874328,95497.0,95496.0,0.10264569]
[1740167443654,0.07874328,95497.0,95496.0,0.25971969]
[1740167444415,0.07874328,95497.0,95496.0,0.26571969]
[1740167445079,0.07874328,95497.0,95496.0,0.28478108]
[1740167445368,0.07874328,95497.0,95496.0,0.33181657]
[1740167445525,0.07874328,95497.0,95496.0,0.30350136]
[1740167445731,0.07874328,95497.0,95496.0,0.32481657]
[1740167445927,0.07874328,95497.0,95496.0,0.35170136]
[1740167446269,0.07874328,95497.0,95496.0,0.38601657]
[1740167446470,0.07874328,95497.0,95496.0,0.37901657]
[1740167446708,0.07874328,95497.0,95496.0,0.40601657]
[1740167446906,0.07874328,95497.0,95496.0,3.76711657]
[1740167447028,0.0008509,95535.0,95514.0,0.157045]
[1740167447237,0.00128627,95515.0,95514.0,0.33786403]
[1740167447433,0.00128627,95515.0,95514.0,0.43382715]
[1740167448137,0.00128627,95515.0,95514.0,0.48604177]
[1740167448362,0.00128627,95515.0,95514.0,0.47904177]
[1740167448576,0.0008509,95535.0,95534.0,0.285412]
[1740167448781,0.0001305,95535.0,95534.0,0.38805769]
[1740167448953,0.0008508,95541.0,95540.0,0.157002]
[1740167449153,0.0008508,95541.0,95540.0,0.2602202]
[1740167449360,0.0008508,95541.0,95540.0,0.25964769]
[1740167449575,0.0008508,95541.0,95540.0,0.29119048]
[1740167449770,0.0008508,95541.0,95540.0,0.32126097]
[1740167450131,0.0008508,95541.0,95540.0,0.29119048]
[1740167451007,0.0008508,95541.0,95540.0,0.31918041]
[1740167451184,0.0008508,95541.0,95540.0,0.32618041]
[1740167451797,0.0008508,95541.0,95540.0,0.33318041]
[1740167452146,0.0008508,95541.0,95540.0,0.27364769]
[1740167452487,0.0008508,95541.0,95540.0,0.30519048]
[1740167452916,0.0008508,95541.0,95540.0,0.29119048]
[1740167453330,0.0008508,95541.0,95540.0,0.29819048]
[1740167453828,0.0008508,95541.0,95540.0,0.32485803]
[1740167454414,0.0008507,95548.0,95543.0,0.02]
[1740167454621,0.09625873,95565.0,95564.0,0.156962]
[1740167454829,0.0008516,95577.0,95565.0,0.156961]
[1740167455040,0.0009814,95566.0,95565.0,0.26017834]
[1740167455240,0.0009814,95566.0,95565.0,0.36628465]
[1740167455445,0.0009814,95566.0,95565.0,0.33940669]
[1740167456068,0.0009814,95566.0,95565.0,0.37328465]
[1740167456402,0.0009814,95566.0,95565.0,0.36628465]
[1740167456555,0.33491897,95612.0,95590.0,0.156919]
[1740167456735,0.00013038,95603.0,95591.0,0.10264569]
[1740167458756,0.00013038,95603.0,95591.0,0.10664569]
[1740167459230,0.00013038,95603.0,95591.0,0.11264569]
[1740167459791,0.00013038,95603.0,95592.0,0.00057173]
[1740167460019,0.00013038,95603.0,95596.0,0.209211]
[1740167460226,0.00013038,95603.0,95597.0,0.10264569]
[1740167460430,0.00013038,95603.0,95602.0,0.25954569]
[1740167460635,3.809e-05,95603.0,95602.0,0.25954569]
[1740167461409,3.809e-05,95603.0,95602.0,0.28642365]
[1740167461837,3.809e-05,95603.0,95602.0,0.29342365]
[1740167462465,3.809e-05,95603.0,95602.0,0.26654569]
[1740167462838,3.809e-05,95603.0,95602.0,0.27354569]
[1740167463040,3.809e-05,95603.0,95602.0,0.30208207]
[1740167463214,3.809e-05,95603.0,95602.0,1.90504352]
[1740167463430,3.809e-05,95603.0,95602.0,1.39365119]
[1740167463634,3.809e-05,95603.0,95602.0,1.37211481]
[1740167463881,3.809e-05,95603.0,95602.0,0.51234569]
[1740167464057,3.809e-05,95603.0,95602.0,0.50534569]
[1740167464257,3.809e-05,95603.0,95602.0,4.39858762]
[1740167464521,3.809e-05,95603.0,95602.0,0.53868762]
[1740167464839,3.809e-05,95603.0,95602.0,0.53168762]
[1740167465044,3.809e-05,95603.0,95602.0,5.27552262]
[1740167465346,3.809e-05,95603.0,95602.0,5.98868299]
[1740167465558,3.809e-05,95603.0,95602.0,5.94218069]
[1740167465869,3.809e-05,95603.0,95602.0,5.94918069]
[1740167466069,3.809e-05,95603.0,95602.0,7.0724507]
[1740167466286,3.809e-05,95603.0,95602.0,7.0654507]
[1740167466487,3.809e-05,95603.0,95602.0,7.03790985]
[1740167466729,3.809e-05,95603.0,95602.0,7.05790985]
[1740167466935,0.0002,95649.0,95636.0,0.156844]
[1740167467236,0.00128539,95637.0,95636.0,0.25948969]
[1740167468164,0.00128539,95637.0,95636.0,3.38768969]
[1740167468371,0.00128539,95637.0,95636.0,0.27255433]
[1740167468585,0.00128539,95637.0,95636.0,0.27955433]
[1740167468790,0.00128539,95637.0,95636.0,0.27255433]
[1740167469199,0.00128539,95637.0,95636.0,0.28655433]
[1740167469724,0.00128539,95637.0,95636.0,0.27955433]
[1740167469947,0.00128539,95637.0,95636.0,0.28655433]
[1740167470158,0.00128539,95637.0,95636.0,5.20038933]
[1740167470369,3.9e-07,95637.0,95636.0,5.21338933]
[1740167470543,3.9e-07,95637.0,95636.0,0.46955433]
[1740167470777,3.9e-07,95637.0,95636.0,0.47655433]
[1740167470984,3.9e-07,95637.0,95636.0,1.17655433]
[1740167471413,0.00075781,95643.0,95642.0,0.346834]
[1740167471709,0.0008881,95643.0,95642.0,0.92847969]
[1740167471898,0.0008881,95643.0,95642.0,1.17127969]
[1740167472044,0.0008881,95643.0,95642.0,1.87127969]
[1740167472255,0.0008881,95643.0,95642.0,1.10947969]
[1740167472561,0.0008881,95643.0,95642.0,0.96647969]
[1740167473145,0.0008881,95643.0,95642.0,0.95947969]
[1740167473548,0.0008881,95643.0,95642.0,0.96647969]
[1740167473809,0.0008881,95643.0,95642.0,0.26647969]
[1740167474015,0.0008881,95643.0,95642.0,0.27347969]
[1740167474219,0.0008881,95643.0,95642.0,0.26647969]
[1740167474539,0.0008881,95643.0,95642.0,1.30787969]
[1740167474746,0.0008881,95643.0,95642.0,1.43127969]
[1740167474884,1e-07,95649.0,95648.0,0.482625]
[1740167475092,0.0008504,95699.0,95688.0,0.156759]
[1740167475298,0.00033027,95689.0,95688.0,0.25940469]
[1740167476601,0.00033027,95689.0,95688.0,0.10964569]
[1740167477409,0.00033027,95689.0,95688.0,0.11664569]
[1740167477952,0.00033027,95689.0,95688.0,0.25940469]
[1740167478159,0.00033027,95689.0,95688.0,0.27340469]
[1740167478594,0.00033027,95689.0,95688.0,0.26640469]
[1740167478799,0.00033027,95689.0,95688.0,0.58780469]
[1740167478994,0.00033027,95689.0,95688.0,0.59480469]
[1740167479416,0.00033027,95689.0,95688.0,0.58780469]
[1740167479726,0.00033027,95689.0,95688.0,0.58080469]
[1740167479932,0.00033027,95689.0,95688.0,0.59480469]
[1740167480536,0.00033027,95689.0,95688.0,1.14480469]
[1740167480740,0.00033027,95689.0,95688.0,1.13780469]
[1740167480896,0.00033027,95689.0,95688.0,1.13080469]
[1740167481302,0.00033027,95689.0,95688.0,1.12380469]
[1740167481511,0.00033027,95689.0,95688.0,1.13080469]
[1740167481698,0.00117847,95689.0,95688.0,1.13080469]
[1740167482050,0.00117847,95689.0,95688.0,1.12380469]
[1740167482268,0.00117847,95689.0,95688.0,1.13080469]
[1740167482639,0.00117847,95689.0,95688.0,1.12380469]
[1740167483027,0.00117847,95689.0,95688.0,1.13080469]
[1740167483230,0.00117847,95689.0,95688.0,1.13780469]
[1740167483570,0.33372441,95759.0,95691.0,0.209005]
[1740167483772,0.00156685,95758.0,95713.0,0.10264569]
[1740167483970,0.33415874,95759.0,95733.0,0.156685]
[1740167483971,0.00843571,95759.0,95733.0,0.156685]
[1740167484180,0.00843571,95759.0,95693.0,0.02]
[1740167484181,0.00043433,95759.0,95734.0,0.10264569]
[1740167484703,0.33471928,95758.0,95741.0,0.156672]
[1740167484935,0.33471928,95758.0,95733.0,0.208912]
[1740167484936,0.33471928,95758.0,95742.0,0.10264569]
[1740167485319,0.00043433,95759.0,95742.0,0.10264569]
[1740167485540,0.00043433,95759.0,95757.0,0.156645]
[1740167485755,0.00043433,95759.0,95758.0,0.10264569]
[1740167487364,0.00043433,95759.0,95702.0,0.02]
[1740167487540,0.00043433,95759.0,95734.0,0.208911]
[1740167487740,0.00043433,95759.0,95735.0,0.10264569]
[1740167488028,0.00043433,95759.0,95737.0,0.10264569]
[1740167488190,0.00043433,95759.0,95742.0,0.10264569]
[1740167488367,0.00043433,95759.0,95746.0,0.10264569]
[1740167489155,0.00043433,95759.0,95722.0,0.02]
[1740167489357,0.00043433,95759.0,95754.0,0.156651]
[1740167489560,0.00043433,95759.0,95755.0,0.10264569]
[1740167489873,0.00043433,95759.0,95755.0,0.25929369]
[1740167490076,0.00043433,95759.0,95755.0,0.10264569]
[1740167490300,0.01174138,95780.0,95755.0,0.10264569]
[1740167490462,0.01187164,95780.0,95755.0,0.10264569]
[1740167490844,0.00506427,95779.0,95755.0,0.10264569]
[1740167491073,0.00606455,95779.0,95755.0,0.10277595]
[1740167491315,0.00100028,95779.0,95755.0,0.10277595]
[1740167491577,0.33471928,95777.0,95755.0,0.10277595]
[1740167491874,0.00100028,95776.0,95755.0,0.10277595]
[1740167492107,0.15,95773.0,95755.0,0.00013026]
[1740167492327,0.15506901,95776.0,95755.0,0.00013026]
[1740167492556,0.15,95774.0,95756.0,0.10264569]
[1740167492806,0.15,95776.0,95756.0,0.10264569]
[1740167492997,0.01454085,95772.0,95756.0,0.10264569]
[1740167493225,0.01454085,95775.0,95756.0,0.10264569]
[1740167493399,0.01454085,95770.0,95756.0,0.10264569]
[1740167493747,0.01454085,95768.0,95756.0,0.10264569]
[1740167494353,0.01454085,95775.0,95756.0,0.10264569]
[1740167494777,0.0008482,95776.0,95756.0,0.10264569]
[1740167494974,0.0008482,95776.0,95775.0,0.156617]
[1740167495179,0.0008482,95776.0,95775.0,0.26051553]
[1740167495400,0.0008482,95776.0,95775.0,0.25926269]
[1740167497237,0.0008482,95776.0,95775.0,0.10264569]
[1740167497452,0.0008482,95776.0,95775.0,0.25926269]
[1740167498189,0.0008482,95776.0,95775.0,0.10264569]
[1740167499003,0.0008482,95776.0,95775.0,0.10389841]
[1740167499152,0.0008482,95776.0,95775.0,0.10264569]
[1740167499358,0.0002,95809.0,95784.0,0.156601]
[1740167499564,0.0002,95809.0,95785.0,0.10264569]
[1740167499765,0.0002,95809.0,95804.0,0.156569]
[1740167499949,0.0002,95809.0,95808.0,0.156563]
[1740167500149,0.0002,95809.0,95808.0,0.26046094]
[1740167500397,0.0002,95809.0,95808.0,0.25920869]
[1740167500597,0.00033012,95809.0,95808.0,0.25920869]
[1740167501664,0.01217566,95833.0,95808.0,0.10264569]
[1740167501869,0.01217566,95833.0,95801.0,0.286064]
[1740167501870,0.0002,95849.0,95823.0,0.10264569]
[1740167502063,0.0002,95849.0,95830.0,0.156527]
[1740167502372,0.0002,95849.0,95832.0,0.156523]
[1740167502569,0.0002,95849.0,95833.0,0.10264569]
[1740167502775,0.0002,95849.0,95833.0,0.25916769]
[1740167503163,0.0002,95849.0,95833.0,0.10264569]
[1740167503904,0.0002,95849.0,95833.0,0.18134569]
[1740167505468,0.0154532,95834.0,95833.0,0.18134569]
[1740167505690,0.0154532,95834.0,95833.0,0.33786769]
[1740167506634,0.0154532,95834.0,95833.0,0.38456769]
[1740167507250,0.0002,95849.0,95834.0,0.15]
[1740167507568,0.00033012,95849.0,95848.0,0.33524269]
[1740167508149,0.00033012,95849.0,95848.0,0.17874569]
[1740167508351,0.00033012,95849.0,95848.0,0.10264569]
[1740167510637,0.00033012,95849.0,95848.0,0.25914269]
[1740167510838,0.00033012,95849.0,95848.0,0.10264569]
[1740167511169,0.00033012,95849.0,95848.0,0.26039447]
[1740167511322,0.00033012,95849.0,95848.0,0.25914269]
[1740167511727,0.00033012,95849.0,95848.0,4.68474269]
[1740167511890,0.00033012,95849.0,95848.0,5.30007769]
[1740167512288,0.00033012,95849.0,95848.0,1.44974269]
[1740167512500,0.00033012,95849.0,95848.0,0.53624269]
[1740167512724,0.00033012,95849.0,95848.0,0.38624269]
[1740167513130,0.00033012,95849.0,95848.0,0.15174569]
[1740167513335,0.00033012,95849.0,95848.0,0.10264569]
[1740167514403,0.00033012,95849.0,95848.0,0.10389746]
[1740167514815,0.00033012,95849.0,95848.0,0.10389731]
[1740167515018,0.00033012,95849.0,95848.0,0.10264569]
[1740167515222,0.00033012,95849.0,95848.0,0.10389723]
[1740167515765,0.00033012,95849.0,95848.0,0.25389723]
[1740167515946,0.00033012,95849.0,95848.0,0.10264569]
[1740167516507,0.00033012,95849.0,95848.0,0.10389738]
[1740167516714,0.00033012,95849.0,95848.0,0.10264569]
[1740167517978,0.00033012,95849.0,95848.0,0.1038975]
[1740167518128,0.00117672,95849.0,95848.0,0.1038975]
[1740167518855,0.00117672,95849.0,95848.0,0.10264569]
[1740167519935,0.01571757,95849.0,95848.0,0.10264569]
[1740167520357,0.01454085,95848.0,95833.0,0.0016932]
[1740167520588,0.01571757,95849.0,95834.0,0.10264569]
[1740167520589,0.01454085,95846.0,95834.0,0.10264569]
[1740167520820,0.00117672,95849.0,95834.0,0.10264569]
[1740167520821,0.01454085,95844.0,95834.0,0.10264569]
[1740167521306,0.06607672,95849.0,95834.0,0.10264569]
[1740167521307,0.01454085,95842.0,95840.0,0.156509]
[1740167521510,0.01454085,95842.0,95833.0,0.0016932]
[1740167521511,0.01454085,95842.0,95841.0,0.10264569]
[1740167521683,0.00117672,95849.0,95841.0,0.10264569]
[1740167522095,0.00117672,95849.0,95843.0,0.156505]
[1740167522297,0.00117672,95849.0,95844.0,0.10264569]
[1740167522501,0.00117672,95849.0,95833.0,0.0016932]
[1740167522502,0.01454085,95848.0,95833.0,0.0016932]
[1740167522701,0.01454085,95846.0,95834.0,0.10264569]
[1740167523085,0.01454085,95848.0,95834.0,0.10264569]
[1740167523511,0.01454085,95846.0,95833.0,0.0016932]
[1740167523680,0.01454085,95843.0,95833.0,0.0016932]
[1740167523886,0.15652,95835.0,95833.0,0.0016932]
[1740167524096,0.01544897,95834.0,95833.0,0.0016932]
[1740167524293,0.01454085,95834.0,95833.0,0.0016932]
[1740167524519,0.17582239,95834.0,95833.0,0.0016932]
[1740167524920,0.17673051,95834.0,95833.0,0.0016932]
[1740167525096,0.2993762,95834.0,95833.0,0.0016932]
[1740167525298,0.44846808,95834.0,95833.0,0.0016932]
[1740167525498,1.47319724,95834.0,95833.0,0.0016932]
[1740167525729,0.15,95829.0,95784.0,0.0789]
[1740167525927,0.02,95822.0,95785.0,0.10264569]
[1740167526163,0.01454085,95814.0,95785.0,0.10264569]
[1740167526365,0.01454085,95810.0,95785.0,0.10264569]
[1740167526545,0.01454085,95810.0,95761.0,0.0786]
[1740167526546,0.01454085,95808.0,95761.0,0.0786]
[1740167526844,0.01454085,95808.0,95757.0,0.0462]
[1740167526845,0.01454085,95804.0,95762.0,0.10264569]
[1740167527056,0.01454085,95804.0,95757.0,0.0462]
[1740167527057,0.01454085,95804.0,95768.0,0.10264569]
[1740167527187,0.0328,95826.0,95789.0,0.156593]
[1740167527424,0.15,95821.0,95791.0,0.15659]
[1740167527690,0.01454085,95818.0,95792.0,0.10264569]
[1740167527932,0.01454085,95816.0,95792.0,0.10264569]
[1740167528168,0.0328,95826.0,95770.0,0.0786]
[1740167528169,0.01454085,95814.0,95770.0,0.0786]
[1740167528384,0.01454085,95814.0,95768.0,0.00013012]
[1740167528385,0.01454085,95805.0,95771.0,0.10264569]
[1740167528616,0.01454085,95802.0,95771.0,0.10264569]
[1740167528861,0.01454085,95803.0,95771.0,0.10264569]
[1740167529076,0.01454085,95799.0,95771.0,0.10264569]
[1740167529304,0.01454085,95795.0,95771.0,0.10264569]
[1740167529531,0.01454085,95793.0,95768.0,0.00013012]
[1740167529801,0.00090812,95795.0,95769.0,0.10264569]
[1740167529802,0.01454085,95785.0,95769.0,0.10264569]
[1740167530037,0.17114185,95785.0,95769.0,0.10264569]
[1740167530285,0.01454085,95780.0,95768.0,0.00013012]
[1740167530526,0.01454085,95781.0,95768.0,0.00013012]